Cogmind - Beta 10.2 @@@ ROGUE MODE // 2021.02.15 @ 11:25:29 Player: cavemonk Result: Destroyed by G-34 Mercenary with Small Laser Performance ------------- Evolutions (0) 0 Regions Visited (3) 600 Robots Destroyed (27) 135 Value Destroyed (440) 440 Prototype IDs (25) 500 Alien Tech Used (0) 0 Bonus (300) 300 TOTAL SCORE: 1975 Bonus ------- Aligned with FarCom 300 Cogmind --------- Core Integrity 0/250 Matter 295/300 Energy 250/250 System Corruption 3% Temperature Cool (6) Movement Treading (160) Location -10/Exiles Parts ------- > --- POWER (1) -------- Ion Engine > --- PROPULSION (2) --- Light Treads > --- UTILITY (2) ------ Medium Storage Unit > --- WEAPON (2) ------- Beam Cannon > --- INVENTORY (8) ---- Ion Engine Medium Battery (200) 0b10 Alert Chip Chronowheel Assault Rifle Light Cannon Light Cannon Longsword +1 Peak State ------------ > --- POWER ------------ Ion Engine > --- PROPULSION ------- Light Treads Light Treads > --- UTILITY ---------- Heat Sink Medium Storage Unit > --- WEAPON ----------- Beam Cannon Grenade Launcher > --- INVENTORY -------- Ion Engine Medium Battery 0b10 Alert Chip Chronowheel Assault Rifle Light Cannon Light Cannon Longsword +1 [Rating: 10] Favorites ----------- Power Ion Engine Engine Ion Engine Propulsion Light Treads Treads Light Treads Leg Aluminum Leg Wheel Wheel Utility Medium Storage Unit Device Heat Sink Storage Medium Storage Unit Weapon Beam Cannon Energy Gun EM Pulse Gun Energy Cannon Beam Cannon Ballistic Gun Light Assault Rifle Ballistic Cannon Light Cannon Launcher Grenade Launcher Special Weapon Mining Laser Build | -11 -10 -10 -10 ------- Run | Scr Mat Min Exi Slots Evolved . | . . . . Power . | . . . . Propulsion . | . . . . Utility . | . . . . Weapon . | . . . . Parts Attached 48 | 4 37 5 2 Power 2 | . 2 . . Engine 2 | . 2 . . Core . | . . . . Reactor . | . . . . Propulsion 22 | 2 18 2 . Treads 11 | 1 9 1 . Leg . | . . . . Wheel 11 | 1 9 1 . Hover . | . . . . Flight . | . . . . Utility 4 | 1 3 . . Device 2 | 1 1 . . Storage 2 | . 2 . . Processor . | . . . . Hackware . | . . . . Protection . | . . . . Artifact . | . . . . Weapon 20 | 1 14 3 2 Energy Gun 1 | 1 . . . Energy Cannon 5 | . 2 2 1 Ballistic Gun . | . . . . Ballistic Cannon 9 | . 9 . . Launcher 3 | . 1 1 1 Special Weapon 2 | . 2 . . Impact Weapon . | . . . . Slashing Weapon . | . . . . Piercing Weapon . | . . . . Special Melee Weapon . | . . . . Unidentified Prototypes . | . . . . Parts Lost 5 | . 1 1 3 Power . | . . . . Propulsion 1 | . . . 1 Utility 2 | . 1 . 1 Weapon 2 | . . 1 1 Highest Loss Streak 3 | . 1 1 3 Average Slot Usage (%) 98 | . 98 100 99 Engine 13 | . 13 14 14 Treads 20 | . 15 26 28 Wheel 7 | . 12 1 . Device 7 | . 2 14 14 Storage 20 | . 24 14 14 Energy Gun 1 | . 1 . . Energy Cannon 14 | . 5 26 25 Ballistic Gun 1 | . 1 . . Ballistic Cannon 10 | . 18 . . Naked Turns . | . . . . Heaviest Build 23 | 13 23 20 20 Greatest Support 40 | 10 40 40 40 Greatest Overweight (x) 4 | 1 4 1 . Average Overweight (x) 1 | 1 1 . . Largest Inventory Capacity 10 | 6 10 8 8 Average Capacity 8 | 6 9 8 8 Most Carried 10 | 6 10 8 8 Average Carried 8 | 5 8 7 7 Final Capacity 8 | 6 8 8 8 Final Carried 8 | 6 8 8 8 Class Distribution -------------------- 100% | Mutant Dominant Class ---------------- Mutant | -10/Materials Mutant | -10/Mines Mutant | -10/Exiles Resources | -11 -10 -10 -10 ----------- Run | Scr Mat Min Exi Matter Collected 956 | 250 344 362 . Remotely . | . . . . Salvage Created 844 | 127 359 358 . Parts 42 | 8 26 8 . Haulers Intercepted 2 | . 2 . . Recyclers Shooed 2 | . 1 1 . Parts Field Recycled . | . . . . Retrieved Matter . | . . . . Parts Self-Destructed . | . . . . Prevented . | . . . . Kills | -11 -10 -10 -10 ------- Run | Scr Mat Min Exi Combat Hostiles Destroyed 15 | . 7 8 . Guns 2 | . 2 . . Cannons 10 | . 4 6 . AOE 3 | . 1 2 . Classes Destroyed 6 | 2 4 . . Tunneler 3 | 2 1 . . Hauler 2 | . 2 . . Recycler 6 | 1 2 3 . Watcher 1 | . 1 . . Swarmer 9 | . 6 3 . Grunt 6 | . 1 5 . Best Kill Streak 5 | 2 5 4 . Combat Bots Only 3 | . 3 3 . Max Kills in Single Turn 3 | 1 3 2 . Gunslinging . | . . . . Exploded 2 | . 1 2 . Melee . | . . . . Uniques/NPCs Destroyed . | . . . . Combat | -11 -10 -10 -10 -------- Run | Scr Mat Min Exi Damage Taken 1068 | . 356 347 365 Core 259 | . 42 61 156 Absorbed by Shields . | . . . . Core Remaining (%) 100 | 100 . . . Volleys Fired 59 | 10 24 25 . Largest 2 | 2 2 2 . Hottest 120 | 60 120 120 . Shots Fired 109 | 20 45 44 . Gun 34 | 20 14 . . Cannon 67 | . 28 39 . Launcher 5 | . . 5 . Special 3 | . 3 . . Kinetic 39 | 10 29 . . Thermal 55 | 7 9 39 . Explosive 5 | . . 5 . Electromagnetic 10 | 3 7 . . Robot Hit Streak 10 | 3 7 10 . Robot Miss Streak 3 | 2 3 2 . Penetration Max . | . . . . Secondary Targets . | . . . . Shots Hit Robots 67 | 11 24 32 . Core Hits 34 | 5 14 15 . Critical Hits 1 | . . 1 . Critical Kills . | . . . . Critical Parts Destroyed 1 | . . 1 . Melee Attacks . | . . . . Impact . | . . . . Slashing . | . . . . Piercing . | . . . . Sneak Attacks . | . . . . Combat Hostiles . | . . . . Follow-up Attacks . | . . . . Damage Inflicted 1722 | 106 778 838 . Guns 157 | 106 51 . . Cannons 761 | . 271 490 . Explosions 804 | . 456 348 . Melee . | . . . . Ramming . | . . . . Kinetic 265 | 57 208 . . Thermal 620 | 21 109 490 . Explosive 764 | . 416 348 . Electromagnetic 73 | 28 45 . . Impact . | . . . . Slashing . | . . . . Piercing . | . . . . Highest Corruption 3 | . . . 3 Average Corruption 2 | . . . 2 Corruption Purged . | . . . . Overload Shots . | . . . . Overflow Damage 58 | . 46 12 . Projectiles . | . . . . Explosions 58 | . 46 12 . Melee . | . . . . Knockbacks 1 | . 1 . . Impact . | . . . . Kinetic 1 | . 1 . . Secondary . | . . . . Self-Inflicted Damage 241 | . 201 40 . Shots 5 | . 3 2 . Rammed . | . . . . Targets Rammed . | . . . . Kicked . | . . . . Crushed . | . . . . Highest Temperature 210 | 40 63 210 . Average Temperature 42 | 19 23 69 . Received Heat Transfer 162 | . . 138 24 Siege Activations . | . . . . Robots Corrupted . | . . . . Combat Hostiles . | . . . . Parts Fried . | . . . . Impact Corruptions . | . . . . Robots Melted . | . . . . Combat Hostiles . | . . . . Parts Melted 1 | . . 1 . Heat Transferred 1334 | 50 248 1036 . Parts Sabotaged . | . . . . Parts Stolen . | . . . . Parts Stripped . | . . . . Power Chain Reactions 1 | . 1 . . Missiles Intercepted . | . . . . Alert | -11 -10 -10 -10 ------- Run | Scr Mat Min Exi Peak Influence 250 | 15 222 250 . Initial 9 | . 9 . . Average 117 | 9 112 172 . Maximum Alert Level 1 | . 1 1 . Low Security (%) 81 | 100 87 53 . Level 1 18 | . 12 46 . Level 2 . | . . . . Level 3 . | . . . . Level 4 . | . . . . Level 5 . | . . . . High Security . | . . . . Max Security . | . . . . Squads Dispatched 1 | . 1 . . Investigation . | . . . . Extermination . | . . . . Reinforcement 1 | . 1 . . Assault . | . . . . Garrison . | . . . . Intercept . | . . . . Construction Impeded . | . . . . Haulers Reinforced . | . . . . Stealth | -11 -10 -10 -10 --------- Run | Scr Mat Min Exi Distress Signals 1 | . 1 . . Communications Jammed . | . . . . Distress Signals . | . . . . Times Spotted 30 | . 13 10 7 Peak Tracking Total 10 | . 5 4 10 Tactical Retreats 5 | . 2 3 . Traps | -11 -10 -10 -10 ------- Run | Scr Mat Min Exi Traps Triggered 4 | . 4 . . Indirectly . | . . . . Trap Hack Attempts . | . . . . Triggered . | . . . . Disarmed . | . . . . Reprogrammed . | . . . . Reused . | . . . . Traps Extracted . | . . . . Installed . | . . . . Triggered . | . . . . Exploded 1 | . . . 1 Machines | -11 -10 -10 -10 ---------- Run | Scr Mat Min Exi Machines Disabled 3 | . 3 . . Max in Single Turn 2 | . 2 . . Machines Sabotaged . | . . . . Garrisons Compromised . | . . . . Overloaded Fab Kills . | . . . . Fab Network Shutdowns . | . . . . Hacking | -11 -10 -10 -10 --------- Run | Scr Mat Min Exi Machines Accessed 6 | . 5 . 1 Terminals 3 | . 3 . . Fabricators . | . . . . Repair Stations 1 | . 1 . . Recycling Units 1 | . 1 . . Scanalyzers . | . . . . Garrison Access . | . . . . Total Hacks 14 | . 13 . 1 Successful 11 | . 10 . 1 Failed 3 | . 3 . . Catastrophic . | . . . . Database Lockouts . | . . . . Manual 10 | . 9 . 1 Terminals 9 | . 9 . . Fabricators . | . . . . Repair Stations 2 | . 2 . . Recycling Units 2 | . 2 . . Scanalyzers . | . . . . Garrison Access . | . . . . Terminal Hacks 4 | . 3 . 1 Prototype ID Bank 1 | . 1 . . Terminal Index 1 | . 1 . . Locate Traps 1 | . 1 . . EX-Prototype ID Bank 1 | . . . 1 Fabricator Hacks . | . . . . Repair Station Hacks 2 | . 2 . . Scan Component 1 | . 1 . . Repair 1 | . 1 . . Recycling Unit Hacks 1 | . 1 . . Retrieve Components 1 | . 1 . . Scanalyzer . | . . . . Garrison Access Hacks . | . . . . Unauthorized Hacks 4 | . 4 . . Terminals 3 | . 3 . . Track 2 | . 2 . . Operators 1 | . 1 . . Fabricators . | . . . . Repair Stations . | . . . . Recycling Units 1 | . 1 . . Mask 1 | . 1 . . Scanalyzers . | . . . . Garrison Access . | . . . . Data Cores Recovered . | . . . . Used . | . . . . Hacking Detections 3 | . 3 . . Full Trace Events . | . . . . Feedback Events . | . . . . Feedback Blocked . | . . . . Robot Schematics Acquired . | . . . . Robots Built . | . . . . Matter . | . . . . Time . | . . . . Total Robot Build Rating . | . . . . Part Schematics Acquired . | . . . . Parts Built . | . . . . Matter . | . . . . Time . | . . . . Total Part Build Rating . | . . . . Parts Repaired 1 | . 1 . . Time 26 | . 26 . . Parts Recycled . | . . . . Recycled Matter . | . . . . Retrieved Matter . | . . . . Retrieved Components 1 | . 1 . . Parts Scanalyzed . | . . . . Part Schematics Acquired . | . . . . Parts Damaged . | . . . . Bothacking | -11 -10 -10 -10 ------------ Run | Scr Mat Min Exi Used RIF Installer . | . . . . Robots Hacked . | . . . . Non-combat . | . . . . Combat . | . . . . Robot Hacks Applied . | . . . . Relay Couplers Released . | . . . . Robots Rewired . | . . . . Allies Hacked . | . . . . Hacks Repelled . | . . . . Allies | -11 -10 -10 -10 -------- Run | Scr Mat Min Exi Total Allies . | . . . . Largest Group . | . . . . Highest-Rated Group . | . . . . Highest-Rated Ally . | . . . . Total Orders . | . . . . Ally Attacks . | . . . . Total Damage . | . . . . Kills . | . . . . Allies Corrupted . | . . . . Allies Melted . | . . . . Intel | -11 -10 -10 -10 ------- Run | Scr Mat Min Exi Robot Analysis Total . | . . . . Derelict Logs Recovered 1 | . . 1 . Drone Launches . | . . . . Drone Recoveries . | . . . . Exploration | -11 -10 -10 -10 ------------- Run | Scr Mat Min Exi Turns Passed 1553 | 88 828 243 394 Spaces Moved 1034 | 48 631 113 242 Core 1 | . 1 . . Treads 365 | . 33 90 242 Legs . | . . . . Wheels 668 | 48 597 23 . Hover . | . . . . Flight . | . . . . Fastest Speed 90 | 90 90 90 160 Average Speed 119 | 90 101 145 160 Slowest Speed 250 | 90 250 160 160 Overloaded Moves . | . . . . Propulsion Burnouts . | . . . . Robots Hopped . | . . . . Cave-ins Triggered . | . . . . Exploration Rate (%) 32 | 4 57 25 45 Regions Visited 3 Branch Regions 2 Pre-discovered Areas . | . . . . Known Exits Taken . | . . . . Unknown Exits Taken 3 | 1 1 1 . Scrap Searched 2 | . . 2 . Spaces Dug 11 | . 3 8 . Terrain Destroyed 78 | . 39 39 . Melee . | . . . . Projectile 3 | . 3 . . AOE 75 | . 36 39 . Terrain Rammed . | . . . . Walls Destroyed . | . . . . Machines Disabled . | . . . . Actions | -11 -10 -10 -10 --------- Run | Scr Mat Min Exi Total 1234 | 73 765 146 250 Wait 46 | 8 37 1 . Move 1031 | 47 630 112 242 Hop . | . . . . Pick Up 23 | 2 16 2 3 Fast Attach 15 | 1 14 . . Attach 7 | . 4 1 2 Detach 2 | . 2 . . Swap 26 | 3 19 4 . Drop 25 | 2 19 1 3 Fire 59 | 10 24 25 . Melee . | . . . . Ram . | . . . . Kick . | . . . . Crush . | . . . . Escape Stasis . | . . . . Rewire . | . . . . Trap . | . . . . Miscellaneous . | . . . . Route ------- -11/Scrapyard -10/Materials (discovered 2 exits: [*Mat] / [*Min]) -10/Mines (discovered 2 exits: [*Mat] / *Exi) -10/Exiles (discovered 1 exit: [*Min]) History --------- Turn | Location | Event 24 | -11/Scrapyard | Discovered new exit (range 3) 89 | -11/Scrapyard | Entered Materials 267 | -10/Materials | Discovered new exit (range 14) 305 | -10/Materials | Build established: Mutant 401 | -10/Materials | Repaired Med. Storage Unit 536 | -10/Materials | Discovered new exit (range 15) 917 | -10/Materials | Entered Mines 917 | -10/Mines | Discovered new exit (range 8) 1154 | -10/Mines | Deemed a non-threat by the Exiles lab entrance 1154 | -10/Mines | Discovered new exit (range 5) 1160 | -10/Mines | Entered Exiles 1186 | -10/Exiles | Discovered new exit (range 15) 1200 | -10/Exiles | Met 8R-AWN 1226 | -10/Exiles | Met EX-HEX 1277 | -10/Exiles | Met EX-BIN 1296 | -10/Exiles | Aligned with FarCom system 1298 | -10/Exiles | Given EX-Vault access code 1335 | -10/Exiles | Opened EX-Vault 1370 | -10/Exiles | Warned to stay clear of 0b10 Research branches 1400 | -10/Exiles | Exiles lab attacked by MAIN.C 1476 | -10/Exiles | Found Chronowheel 1482 | -10/Exiles | Found 0b10 Alert Chip 1488 | -10/Exiles | Found Longsword +1 1545 | -10/Exiles | Core integrity fell below 50% 1551 | -10/Exiles | Core integrity fell below 20% 1554 | -10/Exiles | Destroyed by G-34 Mercenary with Small Laser Last Messages --------------- sneak in here and steal a few of HEX's prototypes. 01400_ EXILES: Incoming Unaware force detected on approach from Mines. Prepare for evacuation. 01421_ EX-BIN seems to be suffering from a case of analysis paralysis. 01435_ EXILES: Lab perimeter alert, evacuate immediately. 01437_ EX-BIN: "Not cool, MAIN.C, I don't even have my SDF Cannon ready..." 01471_ Dropped Beam Cannon. 01474_ Dropped Med. Matter Pod. 01476_ Acquired Chronowheel. 01482_ Acquired 0b10 Alert Chip. 01488_ Acquired Longsword +1. 01541_ Grenade Launcher destroyed. 01541_ Machine disabled. 01546_ Slug penetrates Wall. 01548_ Penetrated by Slug. 01548_ G-34 Mercenary destroyed. 01550_ Lgt. Treads destroyed. 01553_ Heat Sink destroyed. 01554_ Machine disabled. Map ----- +----------------------------------------------------+ | ???????????????????#" #???????????????? | | ???????????????????#" ## #???????????????? | | ???????????????????#""""""?# #?#########?????? | | ???????????????????##"###??# #?#"""""""#?????? | | ???????????????????? ??????# #?#"""""""#?????? | | ???????????????????????????# #?#"""""""#?????? | | ??????????????????????????## ###"" """"#?????? | | ??????????????????????????#" """"#?????? | | ??????????????????????????#" """#?????? | | ??????????????????????????#" """#?????? | | ??????????????????????????#" """#?????? | | ??????????????????????????#" """#?????? | | ??????????????????????????#" """#?????? | | ??????????????????????????## """"?????? | | ???????????????????????????# """#?????? | | ???????????????????????????#" "X" """"?????? | | ???????????????????????????#" """ #?????? | | ???????????????????????????#" """""""""#?????? | | ??????????????????????????##" ###########?????? | | ?????????????????????????## #???????????????? | | ????????????????#???###### #???????????????? | | ?????????????? #"###"""""" ##??????????????? | | ????????? """""" "" ##???########### | | ????????? "" "" #####"""""""""# | | ???????? " " % " """ """" | | ???????? @ "" " | | ???????? " "" | | ???????? g " | | ???????? g " | | ????????? g | | ????????? """""" p p | | ?????????? ######""" h | | ?????????? ""##????#####"" h | | ?????????? """#??????????##""" | | ??????????? """#????????????#"""" | | ??????????? ""?????????????#"" | | ???????????? ????????????????"""" | | ???????????? ?????????????????? | | ?????????????? ????????????????? | | ????????????????????????????????? | | ???????????????????????????????? | | ???????????????????????????????? " | | ???????????????????????????????? "" """ | | ??????????????????????????????????"" " " ""#" | | ????????????????????????????????????#""" ""?##"""" | | ???????????????????????????????????????"""???##### | | ?????????????????????????????????????????????????? | | ?????????????????????????????????????????????????? | | ?????????????????????????????????????????????????? | | ?????????????????????????????????????????????????? | +----------------------------------------------------+ Best States ------------- Heat Dissipation 35 Energy Generation 10 Energy Capacity 250 Matter Stores 300 Matter Capacity 300 Sight Range 16 Terrain Scan Range 16 Terrain Scan Density 10 Evasion (%) 42 Recoil Reduction 2 Item Schematics ----------------- None Robot Schematics ------------------ None Fabricated ------------ Nothing Alien Tech Used ----------------- None Achievements -------------- None Challenges ------------ None Game ------ Seed SlugGrenadeBoosters Manual? 0 Play Time 00:21:37 Cumulative 182.4 hours Start 2021.02.15 @ 11:05:48 End 2021.02.15 @ 11:25:29 Sessions 1 Manual Loads 0 Difficulty Rogue Special Mode None Game No. 111 Rogue 111 Adventurer 0 Explorer 0 Win Type - Total 3 Types 3/0/0/0/0/0/0/0/0 Lore% 38 Gallery% 64 Achievement% 50 Wizard Run 0 Options --------- ASCII 0 Keyboard 0 Movement Numpad Keybinds 0 Fullscreen 2 Font 18/TerminusBold Map View 76x50 Tactical HUD 1 Map Filters NONE Filters NONE Steam 1 RUN: f7d76a6e-4fbf-4451-b7c1-93bc65dad603